fUSD/lending_fUSD_20241203
["ID","MTS","AMOUNT","RATE_DAILY","PERIOD"]
[344016004,1733207633066,-1054.65,0.00025,120]
[344016005,1733207633101,-500.0,0.00025,120]
[344016006,1733207633135,-1449.45,0.00025,120]
[344016007,1733207633171,-197.326199,0.00025,120]
[344016008,1733207633205,-500.0,0.00025,120]
[344016009,1733207633244,-1308.0,0.00025,120]
[344016010,1733207633276,-500.0,0.00025,120]
[344016011,1733207633310,-500.0,0.00025,120]
[344016012,1733207633343,-1628.7,0.00025,120]
[344016013,1733207633613,-1224.72,0.00025,120]
[344016014,1733207633647,-1925.87,0.00025,120]
[344016015,1733207633683,-554.1,0.00025,120]
[344016016,1733207633715,-500.0,0.00025,120]
[344016017,1733207633751,-1100.11,0.00025,120]
[344016018,1733207633784,-2646.13,0.00025,120]
[344016019,1733207633818,-938.72,0.00025,120]
[344016020,1733207633851,-500.0,0.00025,120]
[344016021,1733207633885,-500.0,0.00025,120]
[344016022,1733207633920,-500.0,0.00025,120]
[344016023,1733207633956,-500.0,0.00025,120]
[344016024,1733207633994,-500.0,0.00025,120]
[344016025,1733207634027,-1666.49,0.00025,120]
[344016026,1733207634064,-2395.28,0.00025,120]
[344016027,1733207634101,-500.0,0.00025,120]
[344016028,1733207634136,-500.0,0.00025,120]
[344016029,1733207634172,-500.0,0.00025,120]
[344016030,1733207634213,-500.0,0.00025,120]
[344016031,1733207634251,-2448.81,0.00025,120]
[344016032,1733207634285,-1094.16,0.00025,120]
[344016033,1733207634318,-729.66,0.00025,120]
[344016034,1733207634351,-500.0,0.00025,120]
[344016035,1733207634383,-627.37,0.00025,120]
[344016036,1733207634415,-500.0,0.00025,120]
[344016037,1733207634448,-500.0,0.00025,120]
[344016038,1733207634480,-500.0,0.00025,120]
[344016039,1733207634515,-500.0,0.00025,120]
[344016040,1733207634549,-500.0,0.00025,120]
[344016041,1733207634582,-500.0,0.00025,120]
[344016042,1733207634617,-500.0,0.00025,120]
[344016043,1733207634651,-500.0,0.00025,120]
[344016044,1733207634686,-500.0,0.00025,120]
[344016045,1733207634721,-500.0,0.00025,120]
[344016046,1733207634755,-500.0,0.00025,120]
[344016047,1733207634788,-1286.27,0.00025,120]
[344016048,1733207634824,-500.0,0.00025,120]
[344016049,1733207634857,-500.0,0.00025,120]
[344016050,1733207634891,-500.0,0.00025,120]
[344016051,1733207634925,-500.0,0.00025,120]
[344016052,1733207634960,-415.15527143,0.00025,120]
[344016053,1733207635000,-1392.32,0.00025,120]
[344016054,1733207635038,-4724.77,0.00025,120]
[344016055,1733207635074,-500.0,0.00025,120]
[344016056,1733207635115,-2807.85,0.00025,120]
[344016057,1733207635150,-987.23,0.00025,120]
[344016058,1733207635186,-1235.76,0.00025,120]
[344016059,1733207635226,-5736.65,0.00025,120]
[344016060,1733207635262,-500.0,0.00025,120]
[344016061,1733207635298,-500.0,0.00025,120]
[344016062,1733207635332,-2146.22,0.00025,120]
[344016063,1733207635366,-1213.42,0.00025,120]
[344016064,1733207635399,-500.0,0.00025,120]
[344016065,1733207635431,-1070.22,0.00025,120]
[344016066,1733207635463,-975.31,0.00025,120]
[344016067,1733207635496,-500.0,0.00025,120]
[344016068,1733207635527,-1963.0,0.00025,120]
[344016069,1733207635558,-500.0,0.00025,120]
[344016070,1733207635592,-500.0,0.00025,120]
[344016071,1733207635625,-500.0,0.00025,120]
[344016072,1733207635660,-539.61606405,0.00025,120]
[344016073,1733207635693,-500.0,0.00025,120]
[344016074,1733207635728,-865.32,0.00025,120]
[344016075,1733207635762,-500.0,0.00025,120]
[344016076,1733207635794,-500.0,0.00025,120]
[344016077,1733207635826,-500.0,0.00025,120]
[344016078,1733207635858,-3268.83,0.00025,120]
[344016079,1733207635888,-500.0,0.00025,120]
[344016080,1733207635921,-500.0,0.00025,120]
[344016081,1733207635953,-500.0,0.00025,30]
[344016082,1733207635988,-1191.02,0.00025,120]
[344016083,1733207636022,-500.0,0.00025,120]
[344016084,1733207636057,-502.63880824,0.00025,120]
[344016085,1733207636094,-500.0,0.00025,120]
[344016086,1733207636127,-772.41,0.00025,120]
[344016087,1733207636161,-614.5672063,0.00025,120]
[344016088,1733207636194,-500.0,0.00025,120]
[344016089,1733207636230,-1636.46,0.00025,120]
[344016090,1733207636264,-2019.59,0.00025,120]
[344016091,1733207636299,-500.0,0.00025,120]
[344016092,1733207636333,-873.59,0.00025,120]
[344016093,1733207636368,-500.0,0.00025,120]
[344016094,1733207636403,-776.79,0.00025,120]
[344016095,1733207636437,-500.0,0.00025,120]
[344016096,1733207636469,-848.08,0.00025,120]
[344016097,1733207636508,-1131.48,0.00025,120]
[344016098,1733207636542,-292.62510457,0.00025,120]
[344016099,1733207636577,-500.0,0.00025,30]
[344016100,1733207636615,-500.0,0.00025,120]
[344016101,1733207636652,-208.51051341,0.00025,120]
[344016102,1733207636690,-500.0,0.00025,120]
[344016103,1733207636737,-500.0,0.00025,120]
[344016104,1733207636773,-500.0,0.00025,120]
[344016105,1733207636809,-1367.48,0.00025,120]
[344016106,1733207636844,-500.0,0.00025,120]
[344016107,1733207636880,-500.0,0.00025,120]
[344016108,1733207636918,-1665.85,0.00025,120]
[344016109,1733207637267,-500.0,0.00025,120]
[344016110,1733207637304,-500.0,0.00025,120]
[344016111,1733207637339,-1162.6,0.00025,120]
[344016112,1733207637375,-2671.0,0.00025,120]
[344016113,1733207637410,-500.0,0.00025,120]
[344016114,1733207637450,-1012.34,0.00025,120]
[344016115,1733207637484,-500.0,0.00025,120]
[344016116,1733207637518,-500.0,0.00025,120]
[344016117,1733207637553,-1598.2,0.00025,120]
[344016118,1733207637588,-661.44,0.00025,120]
[344016119,1733207637623,-903.89,0.00025,120]
[344016120,1733207637658,-170.43720333,0.00025,120]
[344016121,1733207637691,-1322.29,0.00025,120]
[344016122,1733207637727,-500.0,0.00025,120]
[344016123,1733207637766,-741.56,0.00025,120]
[344016124,1733207637807,-1794.63,0.00025,120]
[344016125,1733207637842,-500.0,0.00025,120]
[344016126,1733207637879,-500.0,0.00025,120]
[344016127,1733207637914,-1064.47,0.00025,120]
[344016128,1733207637949,-500.0,0.00025,120]
[344016129,1733207637984,-2042.65,0.00025,120]
[344016130,1733207638021,-2284.27,0.00025,120]
[344016131,1733207638056,-686.36,0.00025,120]
[344016132,1733207638093,-1560.6,0.00025,120]
[344016133,1733207638128,-500.0,0.00025,120]
[344016134,1733207638164,-520.38,0.00025,120]
[344016135,1733207638200,-814.69,0.00025,120]
[344016136,1733207638235,-500.0,0.00025,120]
[344016137,1733207638276,-500.0,0.00025,120]
[344016138,1733207638326,-500.0,0.00025,120]
[344016139,1733207638360,-500.0,0.00025,120]
[344016140,1733207638392,-500.0,0.00025,120]
[344016141,1733207638426,-2191.61,0.00025,120]
[344016142,1733207638458,-500.0,0.00025,120]
[344016143,1733207638490,-1948.65,0.00025,120]
[344016144,1733207638523,-2274.4,0.00025,120]
[344016145,1733207638556,-500.0,0.00025,120]
[344016146,1733207638589,-500.0,0.00025,120]
[344016147,1733207638622,-761.67,0.00025,120]
[344016148,1733207638657,-1145.89,0.00025,120]
[344016149,1733207638699,-712.57,0.00025,120]
[344016150,1733207638734,-500.0,0.00025,120]
[344016151,1733207638767,-1353.4,0.00025,120]
[344016152,1733207638800,-500.0,0.00025,120]
[344016153,1733207638833,-500.0,0.00025,120]
[344016154,1733207638866,-500.0,0.00025,120]
[344016155,1733207638900,-267.11856099,0.00025,120]
[344016156,1733207638934,-1178.37,0.00025,120]
[344016157,1733207638967,-500.0,0.00025,30]
[344016158,1733207639000,-948.42,0.00025,120]
[344016159,1733207639031,-500.0,0.00025,120]
[344016160,1733207639065,-500.0,0.00025,120]
[344016161,1733207639098,-608.56,0.00025,120]
[344016162,1733207639132,-500.0,0.00025,120]
[344016163,1733207639165,-500.0,0.00025,120]
[344016164,1733207639200,-500.0,0.00025,120]
[344016165,1733207639235,-500.0,0.00025,120]
[344016166,1733207639270,-2676.88,0.00025,120]
[344016167,1733207639305,-500.0,0.00025,120]
[344016168,1733207639339,-500.0,0.00025,120]
[344016169,1733207639374,-500.0,0.00025,120]
[344016170,1733207639410,-500.0,0.00025,120]
[344016171,1733207639446,-534.35313159,0.00025,120]
[344016172,1733207639481,-500.0,0.00025,120]
[344016173,1733207639516,-500.0,0.00025,120]
[344016174,1733207639553,-1666.66,0.00025,120]
[344016175,1733207639588,-500.0,0.00025,120]
[344016176,1733207639624,-4563.76,0.00025,120]
[344016177,1733207639659,-2460.71,0.00025,120]
[344016178,1733207639697,-500.0,0.00025,120]
[344016179,1733207639731,-1100.9,0.00025,120]
[344016180,1733207639765,-500.0,0.00025,120]
[344016181,1733207639798,-1289.14,0.00025,120]
[344016182,1733207639831,-500.0,0.00025,120]
[344016183,1733207639864,-500.0,0.00025,120]
[344016184,1733207639899,-500.0,0.00025,120]
[344016185,1733207639933,-500.0,0.00025,120]
[344016186,1733207639969,-809.29,0.00025,120]
[344016187,1733207640007,-500.0,0.00025,120]
[344016188,1733207640045,-500.0,0.00025,120]
[344016189,1733207640084,-2148.97,0.00025,120]
[344016190,1733207640121,-500.0,0.00025,120]
[344016191,1733207640160,-1074.51,0.00025,120]
[344016192,1733207640199,-500.0,0.00025,120]
[344016193,1733207640238,-500.0,0.00025,120]
[344016194,1733207640276,-500.0,0.00025,120]
[344016195,1733207640315,-500.0,0.00025,120]
[344016196,1733207640354,-500.0,0.00025,120]
[344016197,1733207640392,-1549.0,0.00025,120]
[344016198,1733207640430,-1789.8,0.00025,120]
[344016199,1733207640468,-1997.19,0.00025,120]
[344016200,1733207640511,-500.0,0.00025,120]
[344016201,1733207640550,-1599.4,0.00025,120]
[344016202,1733207640593,-1834.07,0.00025,120]
[344016203,1733207640634,-500.0,0.00025,120]
[344016204,1733207640671,-1977.44,0.00025,120]
[344016205,1733207640996,-500.0,0.00025,120]
[344016206,1733207641059,-1831.85,0.00025,120]
[344016207,1733207641096,-500.0,0.00025,120]
[344016208,1733207641135,-500.0,0.00025,120]
[344016209,1733207641171,-500.0,0.00025,120]
[344016210,1733207641209,-500.0,0.00025,120]
[344016211,1733207641247,-726.88,0.00025,120]
[344016212,1733207641286,-218.11603219,0.00025,120]
[344016213,1733207641323,-500.0,0.00025,120]
[344016214,1733207641359,-2704.12,0.00025,120]
[344016215,1733207641394,-2087.88,0.00025,120]
[344016216,1733207641429,-616.48,0.00025,120]
[344016217,1733207641464,-500.0,0.00025,120]
[344016218,1733207641500,-1672.5,0.00025,120]
[344016219,1733207641535,-500.0,0.00025,120]
[344016220,1733207641571,-500.0,0.00025,120]
[344016221,1733207641616,-500.0,0.00025,120]
[344016222,1733207641656,-500.0,0.00025,120]
[344016223,1733207641696,-1482.88,0.00025,120]
[344016224,1733207641732,-995.4,0.00025,120]
[344016225,1733207641771,-500.0,0.00025,120]
[344016226,1733207641806,-1910.11,0.00025,120]
[344016227,1733207641840,-1665.73,0.00025,120]
[344016228,1733207641874,-500.0,0.00025,120]
[344016229,1733207641910,-1256.59,0.00025,120]
[344016230,1733207641945,-1116.75,0.00025,120]
[344016231,1733207641983,-500.0,0.00025,120]
[344016232,1733207642017,-679.58,0.00025,120]
[344016233,1733207642053,-500.0,0.00025,120]
[344016234,1733207642087,-500.0,0.00025,120]
[344016235,1733207642123,-2444.66,0.00025,120]
[344016236,1733207642160,-500.0,0.00025,120]
[344016237,1733207642196,-1326.19,0.00025,120]
[344016238,1733207642234,-1383.31,0.00025,120]
[344016239,1733207642271,-500.0,0.00025,120]
[344016240,1733207642309,-500.0,0.00025,120]
[344016241,1733207642345,-500.0,0.00025,120]
[344016242,1733207642385,-1563.05,0.00025,120]
[344016243,1733207642421,-308.59354696,0.00025,120]
[344016244,1733207642457,-2904.45,0.00025,120]
[344016245,1733207642494,-560.72,0.00025,120]
[344016246,1733207642531,-586.83,0.00025,120]
[344016247,1733207642567,-2370.14,0.00025,120]
[344016248,1733207642607,-1139.73,0.00025,120]
[344016249,1733207642646,-500.0,0.00025,120]
[344016250,1733207642685,-794.0,0.00025,120]
[344016251,1733207642726,-1426.14,0.00025,120]
[344016252,1733207642763,-2640.71,0.00025,120]
[344016253,1733207642799,-500.0,0.00025,120]
[344016254,1733207642835,-500.0,0.00025,120]
[344016255,1733207642871,-500.0,0.00025,120]
[344016256,1733207642907,-2170.39,0.00025,120]
[344016257,1733207642945,-500.0,0.00025,120]
[344016258,1733207642983,-500.0,0.00025,120]
[344016259,1733207643022,-1034.19,0.00025,120]
[344016260,1733207643062,-500.0,0.00025,120]
[344016261,1733207643102,-596.36,0.00025,120]
[344016262,1733207643141,-500.0,0.00025,120]
[344016263,1733207643185,-509.60662365,0.00025,120]
[344016264,1733207643227,-1459.58,0.00025,120]
[344016265,1733207643267,-1136.49,0.00025,120]
[344016266,1733207643305,-3893.47,0.00025,120]
[344016267,1733207643346,-2324.37,0.00025,120]
[344016268,1733207643385,-500.0,0.00025,120]
[344016269,1733207643427,-1362.42,0.00025,120]
[344016270,1733207643466,-1182.46,0.00025,120]
[344016271,1733207643508,-1496.88,0.00025,120]
[344016272,1733207643547,-500.0,0.00025,120]
[344016273,1733207643587,-500.0,0.00025,120]
[344016274,1733207643628,-1142.41,0.00025,120]
[344016275,1733207643666,-317.97497443,0.00025,120]
[344016276,1733207643706,-1452.92,0.00025,120]
[344016277,1733207643748,-2676.84,0.00025,120]
[344016278,1733207643790,-2676.84,0.00025,120]
[344016279,1733207643827,-395.89283761,0.00025,120]
[344016280,1733207643865,-2676.84,0.00025,120]
[344016281,1733207643905,-2676.84,0.00025,120]
[344016282,1733207643942,-2676.84,0.00025,120]
[344016283,1733207643985,-2676.84,0.00025,120]
[344016284,1733207644028,-2676.84,0.00025,120]
[344016285,1733207644070,-2676.84,0.00025,120]
[344016286,1733207644110,-500.0,0.00025,120]
[344016287,1733207644150,-2676.84,0.00025,120]
[344016288,1733207644190,-500.0,0.00025,120]
[344016289,1733207644236,-2676.84,0.00025,120]
[344016290,1733207644276,-2676.84,0.00025,120]
[344016291,1733207644317,-2676.84,0.00025,120]
[344016292,1733207644357,-2676.84,0.00025,120]
[344016293,1733207644398,-2676.84,0.00025,120]
[344016294,1733207644438,-2676.84,0.00025,120]
[344016295,1733207644482,-2676.84,0.00025,120]
[344016296,1733207644520,-500.0,0.00025,120]
[344016297,1733207644561,-746.56,0.00025,120]
[344016298,1733207644600,-2676.84,0.00025,120]
[344016299,1733207644640,-2676.84,0.00025,120]
[344016300,1733207644678,-500.0,0.00025,120]
[344016301,1733207644715,-2676.84,0.00025,120]
[344016302,1733207645034,-627.97,0.00025,120]
[344016303,1733207645079,-500.0,0.00025,120]
[344016304,1733207645123,-500.0,0.00025,120]
[344016305,1733207645163,-500.0,0.00025,120]
[344016306,1733207645201,-500.0,0.00025,120]
[344016307,1733207645240,-1032.21,0.00025,120]
[344016308,1733207645280,-2780.47,0.00025,120]
[344016309,1733207645318,-500.0,0.00025,120]
[344016310,1733207645356,-500.0,0.00025,120]
[344016311,1733207645397,-500.0,0.00025,120]
[344016312,1733207645435,-500.0,0.00025,120]
[344016313,1733207645474,-500.0,0.00025,120]
[344016314,1733207645514,-500.0,0.00025,120]
[344016315,1733207645551,-500.0,0.00025,120]
[344016316,1733207645598,-1303.12,0.00025,120]
[344016317,1733207645642,-591.57685567,0.00025,120]
[344016318,1733207645680,-500.0,0.00025,120]
[344016319,1733207645718,-560.79,0.00025,120]
[344016320,1733207645759,-514.48,0.00025,120]
[344016321,1733207645797,-500.0,0.00025,120]
[344016322,1733207645839,-500.0,0.00025,120]
[344016323,1733207645877,-1584.5,0.00025,120]
[344016324,1733207645917,-2676.84,0.00025,120]
[344016325,1733207645962,-2676.84,0.00025,120]
[344016326,1733207646004,-507.99,0.00025,120]
[344016327,1733207646043,-2676.84,0.00025,120]
[344016328,1733207646083,-2676.84,0.00025,120]
[344016329,1733207646122,-2676.86586086,0.00025,120]
[344016330,1733207646161,-500.0,0.00025,120]
[344016331,1733207646200,-1817.08,0.00025,120]
[344016332,1733207646239,-2791.19,0.00025,120]
[344016333,1733207646278,-923.51,0.00025,120]
[344016334,1733207646316,-500.0,0.00025,120]
[344016335,1733207646355,-500.0,0.00025,120]
[344016336,1733207646395,-1589.09,0.00025,120]
[344016337,1733207646435,-604.61,0.00025,120]
[344016338,1733207646473,-1406.79,0.00025,120]
[344016339,1733207646514,-2372.69,0.00025,120]
[344016340,1733207646552,-500.0,0.00025,120]
[344016341,1733207646593,-500.0,0.00025,120]
[344016342,1733207646631,-800.1,0.00025,120]
[344016343,1733207646674,-500.0,0.00025,120]
[344016344,1733207646713,-500.0,0.00025,120]
[344016345,1733207646762,-500.0,0.00025,120]
[344016346,1733207646801,-500.0,0.00025,120]
[344016347,1733207646840,-500.0,0.00025,120]
[344016348,1733207646878,-500.0,0.00025,120]
[344016349,1733207646916,-500.0,0.00025,120]
[344016350,1733207646956,-1179.83,0.00025,120]
[344016351,1733207646999,-500.0,0.00025,120]
[344016352,1733207647043,-500.0,0.00025,120]
[344016353,1733207647085,-2059.46,0.00025,120]
[344016354,1733207647126,-500.0,0.00025,120]
[344016355,1733207647167,-500.0,0.00025,120]
[344016356,1733207647209,-500.0,0.00025,120]
[344016357,1733207647251,-1100.48,0.00025,120]
[344016358,1733207647291,-500.0,0.00025,120]
[344016359,1733207647332,-1705.31,0.00025,120]
[344016360,1733207647375,-500.0,0.00025,120]
[344016361,1733207647416,-1340.78,0.00025,120]
[344016362,1733207647458,-3593.83,0.00025,120]
[344016363,1733207647501,-500.0,0.00025,120]
[344016364,1733207647549,-500.0,0.00025,90]
[344016365,1733207647594,-602.15606085,0.00025,120]
[344016366,1733207647638,-500.0,0.00025,120]
[344016367,1733207647676,-500.0,0.00025,120]
[344016368,1733207647715,-10727.24,0.00025,120]
[344016369,1733207647754,-500.0,0.00025,120]
[344016370,1733207647792,-500.0,0.00025,120]
[344016371,1733207647831,-500.0,0.00025,120]
[344016372,1733207647870,-500.0,0.00025,120]
[344016373,1733207647909,-500.0,0.00025,120]
[344016374,1733207647954,-467.34349044,0.00025,120]
[344016375,1733207647995,-1865.32,0.00025,120]
[344016376,1733207648038,-1602.81,0.00025,120]
[344016377,1733207648078,-3121.43,0.00025,120]
[344016378,1733207648117,-500.0,0.00025,120]
[344016379,1733207648157,-500.0,0.00025,120]
[344016380,1733207648197,-1959.29,0.00025,120]
[344016381,1733207648236,-500.0,0.00025,120]
[344016382,1733207648277,-1293.06,0.00025,120]
[344016383,1733207648316,-586.15,0.00025,120]
[344016384,1733207648355,-500.0,0.00025,120]
[344016385,1733207648394,-4510.57,0.00025,120]
[344016386,1733207648433,-500.0,0.00025,120]
[344016387,1733207648471,-500.0,0.00025,120]
[344016388,1733207648512,-500.0,0.00025,120]
[344016389,1733207648552,-3329.44,0.00025,120]
[344016390,1733207648593,-500.0,0.00025,120]
[344016391,1733207648644,-500.0,0.00025,120]
[344016392,1733207648690,-667.71,0.00025,120]
[344016393,1733207648730,-500.0,0.00025,120]
[344016394,1733207648768,-500.0,0.00025,120]
[344016395,1733207648806,-4440.24,0.00025,120]
[344016396,1733207648845,-2513.82,0.00025,120]
[344016397,1733207648883,-2683.85,0.00025,120]
[344016398,1733207649339,-521.15515046,0.00025,120]
[344016399,1733207649379,-500.0,0.00025,120]
[344016400,1733207649417,-500.0,0.00025,120]
[344016401,1733207649455,-185.75120908,0.00025,120]
[344016402,1733207649497,-1915.95,0.00025,120]
[344016403,1733207649536,-500.0,0.00025,120]
[344016404,1733207649575,-500.0,0.00025,120]
[344016405,1733207649617,-613.46,0.00025,120]
[344016406,1733207649655,-2441.41,0.00025,120]
[344016407,1733207649694,-500.0,0.00025,120]
[344016408,1733207649731,-500.0,0.00025,120]
[344016409,1733207649768,-1510.91,0.00025,120]
[344016410,1733207649805,-500.0,0.00025,120]
[344016411,1733207649842,-1051.34,0.00025,120]
[344016412,1733207649881,-692.33,0.00025,120]
[344016413,1733207649924,-500.0,0.00025,120]
[344016414,1733207649963,-1435.75,0.00025,120]
[344016415,1733207650002,-9685.17,0.00025,120]
[344016416,1733207650041,-2029.83,0.00025,120]
[344016417,1733207650078,-150.0,0.00025,120]
[344016418,1733207650116,-2012.89,0.00025,120]
[344016419,1733207650153,-500.0,0.00025,120]
[344016420,1733207650191,-2463.39,0.00025,120]
[344016421,1733207650231,-1335.54,0.00025,120]
[344016422,1733207650270,-658.32,0.00025,120]
[344016423,1733207650310,-505.80625381,0.00025,120]
[344016424,1733207650348,-500.0,0.00025,120]
[344016425,1733207650385,-2440.07,0.00025,120]
[344016426,1733207650423,-546.66,0.00025,120]
[344016427,1733207650462,-5326.64,0.00025,120]
[344016428,1733207650506,-500.0,0.00025,120]
[344016429,1733207650546,-500.0,0.00025,120]
[344016430,1733207650584,-500.0,0.00025,120]
[344016431,1733207650622,-543.2,0.00025,120]
[344016432,1733207650659,-259.88907099,0.00025,120]
[344016433,1733207650695,-602.36,0.00025,120]
[344016434,1733207650733,-6535.24,0.00025,120]
[344016435,1733207650770,-1869.28,0.00025,120]
[344016436,1733207650805,-611.15,0.00025,120]
[344016437,1733207650843,-1614.56,0.00025,120]
[344016438,1733207650880,-500.0,0.00025,120]
[344016439,1733207650917,-500.0,0.00025,120]
[344016440,1733207650956,-500.0,0.00025,120]
[344016441,1733207650996,-500.0,0.00025,120]
[344016442,1733207651039,-500.0,0.00025,120]
[344016443,1733207651079,-3283.0,0.00025,120]
[344016444,1733207651118,-500.0,0.00025,120]
[344016445,1733207651156,-500.0,0.00025,120]
[344016446,1733207651195,-500.0,0.00025,120]
[344016447,1733207651235,-542.49,0.00025,120]
[344016448,1733207651273,-500.0,0.00025,120]
[344016449,1733207651311,-1533.35,0.00025,120]
[344016450,1733207651348,-652.59,0.00025,120]
[344016451,1733207651384,-7472.01,0.00025,120]
[344016452,1733207651422,-531.75,0.00025,120]
[344016453,1733207651459,-1602.28,0.00025,120]
[344016454,1733207651498,-500.0,0.00025,120]
[344016455,1733207651536,-898.04,0.00025,120]
[344016456,1733207651572,-500.0,0.00025,120]
[344016457,1733207651612,-1684.48,0.00025,120]
[344016458,1733207651650,-23313.24,0.00025,120]
[344016459,1733207651688,-500.0,0.00025,120]
[344016460,1733207651724,-730.93,0.00025,120]
[344016461,1733207651762,-1589.98,0.00025,120]
[344016462,1733207651799,-500.0,0.00025,120]
[344016463,1733207651836,-603.33,0.00025,120]
[344016464,1733207651872,-990.38,0.00025,120]
[344016465,1733207651910,-500.0,0.00025,120]
[344016466,1733207651949,-1792.54,0.00025,120]
[344016467,1733207651988,-924.55,0.00025,120]
[344016468,1733207652026,-518.24,0.00025,120]
[344016469,1733207652063,-1150.4,0.00025,120]
[344016470,1733207652102,-2179.7,0.00025,120]
[344016471,1733207652140,-500.0,0.00025,120]
[344016472,1733207652179,-500.0,0.00025,120]
[344016473,1733207652216,-1346.96,0.00025,120]
[344016474,1733207652256,-500.0,0.00025,120]
[344016475,1733207652295,-1299.93,0.00025,120]
[344016476,1733207652332,-625.08,0.00025,120]
[344016477,1733207652371,-3649.31,0.00025,120]
[344016478,1733207652409,-500.0,0.00025,120]
[344016479,1733207652446,-1057.59,0.00025,120]
[344016480,1733207652487,-2020.87,0.00025,120]
[344016481,1733207652525,-2581.1,0.00025,120]
[344016482,1733207652563,-500.0,0.00025,120]
[344016483,1733207652601,-500.0,0.00025,120]
[344016484,1733207652639,-1115.63,0.00025,120]
[344016485,1733207652677,-300.0,0.00025,120]
[344016486,1733207652716,-2116.72,0.00025,120]
[344016487,1733207652761,-500.0,0.00025,120]
[344016488,1733207652804,-500.0,0.00025,120]
[344016489,1733207652843,-500.0,0.00025,120]
[344016490,1733207652883,-1115.82,0.00025,120]
[344016491,1733207652922,-1049.62,0.00025,120]
[344016492,1733207652962,-500.0,0.00025,120]
[344016493,1733207653242,-4839.0,0.00025,120]
[344016494,1733207653301,-500.0,0.00025,120]
[344016495,1733207653339,-500.0,0.00025,120]
[344016496,1733207653376,-6092.58,0.00025,120]
[344016497,1733207653414,-500.0,0.00025,120]
[344016498,1733207653451,-2162.2,0.00025,120]
[344016499,1733207653490,-500.0,0.00025,120]
[344016500,1733207653528,-500.0,0.00025,120]
[344016501,1733207653569,-1160.96,0.00025,120]
[344016502,1733207653611,-3074.11,0.00025,120]
[344016503,1733207653648,-500.0,0.00025,120]